Cogmind - Beta 14 @@@ ROGUE MODE // 2024.09.04 @ 23:01:57 Player: Mallow Result: Destroyed by G-47 Trooper with Particle Gun Performance ------------- Evolutions (0) 0 Regions Visited (3) 600 Robots Destroyed (10) 50 Value Destroyed (162) 162 Prototype IDs (0) 0 Alien Tech Used (0) 0 Bonus (0) 0 TOTAL SCORE: 812 Bonus ------- None Cogmind --------- Core Integrity 0/250 Matter 252/300 Energy 123/125 System Corruption 0% Temperature Cool (10) Movement Treading (240) Ox1 Location -10/Subcaves Parts ------- > --- POWER (1) -------- Light Ion Engine > --- PROPULSION (2) --- Light Treads > --- UTILITY (2) ------ Large Storage Unit Terrain Scanner > --- WEAPON (2) ------- Light Assault Rifle Heavy Mace > --- INVENTORY (15) --- Ion Engine Small Storage Unit Advanced Weight Redist. System Visual Processing Unit Terrain Scanner Terrain Scan Processor Targeting Computer Light Armor Plating Hardened Medium Armor Plating Hacking Suite Peak State ------------ > --- POWER ------------ Light Ion Engine > --- PROPULSION ------- Light Treads Light Treads > --- UTILITY ---------- Large Storage Unit Terrain Scanner > --- WEAPON ----------- Light Assault Rifle Heavy Mace > --- INVENTORY -------- Ion Engine Light Ion Engine Light Treads Small Storage Unit Advanced Weight Redist. System Visual Processing Unit Terrain Scanner Terrain Scan Processor Targeting Computer Light Armor Plating Hardened Medium Armor Plating Hacking Suite Light Assault Rifle [Rating: 11] Favorites ----------- Power Light Ion Engine Engine Light Ion Engine Propulsion Light Treads Treads Light Treads Utility Large Storage Unit Device Terrain Scanner Storage Large Storage Unit Weapon Light Assault Rifle Ballistic Gun Light Assault Rifle Impact Weapon Heavy Mace Build | -11 -10 -10 -10 ------- Run | Yrd Mat Min Sub Slots Evolved . | . . . . Power . | . . . . Propulsion . | . . . . Utility . | . . . . Weapon . | . . . . Parts Attached 15 | 6 3 1 5 Power 3 | 1 1 . 1 Engine 3 | 1 1 . 1 Core . | . . . . Reactor . | . . . . Propulsion 3 | 2 . . 1 Treads 3 | 2 . . 1 Leg . | . . . . Wheel . | . . . . Hover . | . . . . Flight . | . . . . Utility 3 | 1 2 . . Device 1 | . 1 . . Storage 2 | 1 1 . . Processor . | . . . . Hackware . | . . . . Protection . | . . . . Artifact . | . . . . Weapon 6 | 2 . 1 3 Energy Gun . | . . . . Energy Cannon . | . . . . Ballistic Gun 4 | 2 . . 2 Ballistic Cannon . | . . . . Launcher . | . . . . Special Weapon . | . . . . Impact Weapon 2 | . . 1 1 Slashing Weapon . | . . . . Piercing Weapon . | . . . . Special Melee Weapon . | . . . . Unidentified Prototypes . | . . . . Parts Lost 4 | . . . 4 Power 1 | . . . 1 Propulsion 2 | . . . 2 Utility . | . . . . Weapon 1 | . . . 1 Highest Loss Streak 4 | . . . 4 To Critical Strikes . | . . . . Average Slot Usage (%) 95 | . 93 100 93 Engine 13 | . 14 14 12 Treads 27 | . 28 28 25 Device 10 | . 7 14 14 Storage 14 | . 14 14 14 Ballistic Gun 27 | . 28 27 21 Peak Build Rating 11 | 6 8 11 11 Average Rating 7 | 4 6 8 9 On Entrance 6 | . 6 8 11 Naked Turns . | . . . . Heaviest Build 28 | 10 26 28 28 Greatest Support 40 | 40 40 40 40 Greatest Overweight (x) 1 | . . . 1 Average Overweight (x) . | . . . . Largest Inventory Capacity 15 | 8 15 15 15 Average Capacity 13 | 6 13 15 15 Most Carried 14 | 4 10 14 14 Average Carried 7 | 1 5 10 12 Final Capacity 15 | 8 15 15 15 Final Carried 13 | 1 10 13 10 Class Distribution -------------------- 100% | Mutant Dominant Class ---------------- Mutant | -10/Materials Mutant | -10/Mines Mutant | -10/Subcaves Resources | -11 -10 -10 -10 ----------- Run | Yrd Mat Min Sub Matter Collected 342 | 204 129 9 . Remotely . | . . . . Salvage Created 206 | . 206 . . Parts 22 | . 22 . . Haulers Intercepted . | . . . . Recyclers Shooed 1 | . 1 . . Parts Field Recycled . | . . . . Retrieved Matter . | . . . . Parts Self-Destructed . | . . . . Prevented . | . . . . Kills | -11 -10 -10 -10 ------- Run | Yrd Mat Min Sub Combat Hostiles Destroyed 8 | . 8 . . Guns 8 | . 8 . . Classes Destroyed 4 | . 4 . . Builder 1 | . 1 . . Operator 1 | . 1 . . Swarmer 6 | . 6 . . Grunt 2 | . 2 . . Best Kill Streak 3 | . 3 . . Combat Bots Only 3 | . 3 . . Max Kills in Single Turn 1 | . 1 . . Gunslinging . | . . . . Exploded . | . . . . Melee . | . . . . Uniques/NPCs Destroyed . | . . . . Combat | -11 -10 -10 -10 -------- Run | Yrd Mat Min Sub Hostile Shots Fired 85 | . 25 . 60 Missed 22 | . 6 . 16 Damage Taken 845 | . 191 . 654 Core 252 | . 92 . 160 Absorbed by Shields . | . . . . Core Remaining (%) 100 | 100 . . . Volleys Fired 32 | . 26 . 6 Largest 2 | . 2 . 2 Hottest 40 | . 40 . 40 Shots Fired 60 | . 52 . 8 Gun 60 | . 52 . 8 Cannon . | . . . . Launcher . | . . . . Special . | . . . . Kinetic 60 | . 52 . 8 Thermal . | . . . . Explosive . | . . . . Electromagnetic . | . . . . Robot Hit Streak 11 | . 11 . 6 Robot Miss Streak 3 | . 3 . 1 Penetration Max . | . . . . Secondary Targets . | . . . . Shots Hit Robots 38 | . 31 . 7 Core Hits 17 | . 17 . . Critical Kills . | . . . . Critical Parts Destroyed . | . . . . Critical Strikes . | . . . . Melee Attacks 12 | . . 4 8 Impact 12 | . . 4 8 Slashing . | . . . . Piercing . | . . . . Sneak Attacks . | . . . . Combat Hostiles . | . . . . Follow-up Attacks . | . . . . Damage Inflicted 365 | . 273 . 92 Guns 324 | . 273 . 51 Cannons . | . . . . Explosions . | . . . . Melee 41 | . . . 41 Ramming . | . . . . Kinetic 324 | . 273 . 51 Thermal . | . . . . Explosive . | . . . . Electromagnetic . | . . . . Impact 41 | . . . 41 Slashing . | . . . . Piercing . | . . . . Highest Corruption . | . . . . Average Corruption . | . . . . Corruption Purged . | . . . . Corruption Blocked . | . . . . Overload Shots . | . . . . Overflow Damage . | . . . . Projectiles . | . . . . Explosions . | . . . . Melee . | . . . . Knockbacks . | . . . . Impact . | . . . . Kinetic . | . . . . Secondary . | . . . . Self-Inflicted Damage . | . . . . Shots . | . . . . Rammed . | . . . . Targets Rammed . | . . . . Kicked . | . . . . Crushed . | . . . . Highest Temperature 22 | . 22 . . Average Temperature 11 | . 11 . . Received Heat Transfer 411 | . 69 . 342 Siege Activations . | . . . . Robots Corrupted . | . . . . Combat Hostiles . | . . . . Parts Fried . | . . . . Impact Corruptions . | . . . . Robots Melted . | . . . . Combat Hostiles . | . . . . Parts Melted . | . . . . Heat Transferred . | . . . . Parts Sabotaged . | . . . . Parts Stolen . | . . . . Parts Stripped . | . . . . Power Chain Reactions . | . . . . Alert | -11 -10 -10 -10 ------- Run | Yrd Mat Min Sub Peak Influence 185 | . 185 7 . Initial 7 | . . 7 . Average 55 | . 88 4 . Maximum Alert Level . | . . . . Low Security (%) 100 | 100 100 100 . Level 1 . | . . . . Level 2 . | . . . . Level 3 . | . . . . Level 4 . | . . . . Level 5 . | . . . . High Security . | . . . . Max Security . | . . . . Squads Dispatched 1 | . . 1 . Investigation 1 | . . 1 . Extermination . | . . . . Reinforcement . | . . . . Assault . | . . . . Garrison . | . . . . Intercept . | . . . . Searches Triggered . | . . . . Construction Impeded . | . . . . Haulers Reinforced . | . . . . Active Scanning Responses . | . . . . Cargo Convoy Interrupts . | . . . . Stealth | -11 -10 -10 -10 --------- Run | Yrd Mat Min Sub Distress Signals 1 | . 1 . . Communications Jammed . | . . . . Distress Signals . | . . . . Times Spotted 23 | . 19 . 4 Peak Tracking Total 5 | . 5 . 3 Tactical Retreats 1 | . 1 . . Traps | -11 -10 -10 -10 ------- Run | Yrd Mat Min Sub Traps Triggered . | . . . . Indirectly . | . . . . Trap Hack Attempts . | . . . . Triggered . | . . . . Disarmed . | . . . . Reprogrammed . | . . . . Reused . | . . . . Traps Extracted . | . . . . Installed . | . . . . Triggered . | . . . . Machines | -11 -10 -10 -10 ---------- Run | Yrd Mat Min Sub Machines Disabled . | . . . . Max in Single Turn . | . . . . Machines Repaired . | . . . . Machines Dismantled . | . . . . Machines Sabotaged . | . . . . Overloaded Fab Kills . | . . . . Hacking | -11 -10 -10 -10 --------- Run | Yrd Mat Min Sub Machines Accessed 2 | . 1 1 . Terminals . | . . . . Fabricators . | . . . . Repair Stations . | . . . . Recycling Units 1 | . 1 . . Scanalyzers . | . . . . Garrison Access . | . . . . Total Hacks 4 | . 3 1 . Successful 3 | . 2 1 . Failed 1 | . 1 . . Catastrophic . | . . . . Database Lockouts . | . . . . Manual . | . . . . Terminals . | . . . . Fabricators . | . . . . Repair Stations . | . . . . Recycling Units 3 | . 3 . . Scanalyzers . | . . . . Garrison Access . | . . . . Terminal Hacks 1 | . . 1 . Open Door 1 | . . 1 . Fabricator Hacks . | . . . . Repair Station Hacks . | . . . . Recycling Unit Hacks 2 | . 2 . . Report Inventory 1 | . 1 . . Retrieve Components 1 | . 1 . . Scanalyzer . | . . . . Garrison Access Hacks . | . . . . Unauthorized Hacks . | . . . . Terminals . | . . . . Fabricators . | . . . . Repair Stations . | . . . . Recycling Units . | . . . . Scanalyzers . | . . . . Garrison Access . | . . . . Data Cores Recovered 1 | . 1 . . Used . | . . . . Hacking Detections 1 | . 1 . . Full Trace Events . | . . . . Feedback Events . | . . . . Feedback Blocked . | . . . . Robot Schematics Acquired . | . . . . Robots Built . | . . . . Authchips . | . . . . Time . | . . . . Total Robot Build Rating . | . . . . Part Schematics Acquired . | . . . . Parts Built . | . . . . Authchips . | . . . . Time . | . . . . Total Part Build Rating . | . . . . Parts Repaired . | . . . . Time . | . . . . Parts Recycled . | . . . . Recycled Matter . | . . . . Retrieved Matter . | . . . . Retrieved Components 10 | . 10 . . Parts Scanalyzed . | . . . . Part Schematics Acquired . | . . . . Parts Damaged . | . . . . Bothacking | -11 -10 -10 -10 ------------ Run | Yrd Mat Min Sub Used RIF Installer . | . . . . Robots Hacked . | . . . . Non-combat . | . . . . Combat . | . . . . Robot Hacks Applied . | . . . . Relay Couplers Released . | . . . . Fabnet Peak Effective % . | . . . . Robots Rewired . | . . . . Allies Hacked . | . . . . Hacks Repelled . | . . . . Allies | -11 -10 -10 -10 -------- Run | Yrd Mat Min Sub Total Allies 2 | . . 2 . Largest Group 2 | . . 2 2 Highest-Rated Group 44 | . . 44 44 Highest-Rated Ally 31 | . . 31 31 Total Orders . | . . . . Ally Attacks 7 | . . 2 5 Total Damage 79 | . . 20 59 Kills 1 | . . 1 . Allies Corrupted . | . . . . Allies Melted . | . . . . Intel | -11 -10 -10 -10 ------- Run | Yrd Mat Min Sub Robot Analysis Total . | . . . . Derelict Logs Recovered 1 | . . . 1 Drone Launches . | . . . . Drone Recoveries . | . . . . Exploration | -11 -10 -10 -10 ------------- Run | Yrd Mat Min Sub Turns Passed 1814 | 66 1019 590 139 Spaces Moved 1013 | 41 574 338 60 Core 10 | 10 . . . Treads 1003 | 31 574 338 60 Legs . | . . . . Wheels . | . . . . Hover . | . . . . Flight . | . . . . Fastest Speed 50 | 50 160 160 160 Average Speed 159 | 133 160 160 168 Slowest Speed 240 | 160 160 160 240 Overloaded Moves . | . . . . Propulsion Burnouts . | . . . . Robots Hopped . | . . . . Cave-ins Triggered . | . . . . Exploration Rate (%) 41 | 4 90 64 6 Regions Visited 3 Branch Regions 2 Pre-discovered Areas 1 | . . . 1 Known Exits Taken . | . . . . Unknown Exits Taken 3 | 1 1 1 . Scrap Searched 1 | . . 1 . Spaces Dug . | . . . . Terrain Destroyed . | . . . . Melee . | . . . . Projectile . | . . . . AOE . | . . . . Terrain Rammed . | . . . . Walls Destroyed . | . . . . Machines Disabled . | . . . . Actions | -11 -10 -10 -10 --------- Run | Yrd Mat Min Sub Total 1149 | 53 634 381 81 Wait 54 | . 19 35 . Move 1010 | 40 573 337 60 Hop . | . . . . Pick Up 21 | 7 11 3 . Fast Attach . | . . . . Attach 15 | 6 3 1 5 Detach 4 | . 1 1 2 Swap . | . . . . Drop 1 | . 1 . . Fire 32 | . 26 . 6 Melee 12 | . . 4 8 Ram . | . . . . Kick . | . . . . Crush . | . . . . Escape Stasis . | . . . . Rewire . | . . . . Trap . | . . . . Miscellaneous . | . . . . Route ------- -11/Scrapyard -10/Materials (discovered 5 exits: [*Mat x3] / *Min x2) -10/Mines -10/Subcaves History --------- Turn | Location | Event 34 | -11/Scrapyard | Discovered new exit (range 15) 67 | -11/Scrapyard | Entered Materials 321 | -10/Materials | Build established: Mutant 330 | -10/Materials | Discovered new exit (range 16) 431 | -10/Materials | Discovered new exit (range 5) 661 | -10/Materials | Discovered new exit (range 10) 924 | -10/Materials | Discovered new exit (range 12) 1075 | -10/Materials | Discovered new exit (range 8) 1086 | -10/Materials | Entered Mines 1269 | -10/Mines | Found DCF Scrap (12 items) 1449 | -10/Mines | Assembled infested the area 1454 | -10/Mines | Assisted by a Guerilla fighting off Assembled 1564 | -10/Mines | Met a Derelict shopkeep closing up shop 1666 | -10/Mines | Discovered new exit (range 4) 1676 | -10/Mines | Entered Subcaves 1676 | -10/Subcaves | Accompanied by 2 allies 1681 | -10/Subcaves | Led the pair of lost Derelicts to an unsafe place 1702 | -10/Subcaves | Learned location of Zion (-7) 1770 | -10/Subcaves | Core integrity fell below 50% 1796 | -10/Subcaves | Core integrity fell below 20% 1815 | -10/Subcaves | Destroyed by G-47 Trooper with Particle Gun Last Messages --------------- T-07 Excavator is excavating. EXIT=FOUND LOCATION=UNKNOWN AMBIENT_HEAT=-10 GOAL=ESCAPE EB-FY9(g): "This place looks worse than where we left..." EB-FY9(g): "Following you was a bad idea, I think." Acquired derelict log, extracted data. World map updated: -7/Zion. 3K-90Y(z) suffers critical hit (Destroy). 3K-90Y(z) destroyed. EB-FY9(g) destroyed. Lgt. Ion Engine destroyed. Subatomizers dissect the Lgt. Angular Momentum Engine. Lgt. Treads destroyed. Subatomizers dissect the Imp. Heat Sink. Lgt. Treads destroyed. Subatomizers dissect the Imp. Heat Sink. Lgt. Assault Rifle destroyed. Subatomizers dissect the Imp. Heat Sink. Map ----- +----------------------------------------------------+ | | | | | | | | | | | | | | | | | | | ?????????????????????????????????????????????????? | | ?????????????????????????????????????????????????? | | ?????????????????????????????????????????????????? | | ?????????????????????????????????????????????????? | | ?????????????????????????????????????????????????? | | ?????????????????????????????????????????????????? | | ?????????????????????????????????????????????????? | | ?????????????????????????????????????????????????? | | ?????????????????????????????????????????????????? | | ?????????????????????????????????????????????????? | | ?????????????????????????????????????????????????? | | ???????????????????#?????????????????????????????? | | ??????????????????????????#??????????????????????? | | ?????????????????????????????????????????????????? | | ??????????????????#??#########???????????????????? | | ?????????????#??#?#### g #####???????????????? | | ???????????# ### # # @ #???#????????????? | | ?????????? ##???#????????????? | | ???????#?? ##????#???????????? | | ???#??????? # # ## ##??#????????????? | | ??????????????????## #; ## #????????????? | | ???????????????#### ### #????????????? | | ???????????##?### ## #????????????? | | ??????????????## ! #????????????? | | ?????????????## *% ### #????????????? | | ?????????????# ##; ##?? #????????????? | | ?????????????# ###### g #???? ##????????????? | | ?????????????# ##???# ##????#?????????????? | | ??????????#?## ###???## ###????????????????? | | ????#????#### ######## ##???????????????? | | ?????????# ## ### * #???????????????? | | ????????## ##%! #??????????????? | | ????????# ## = ##??????????????? | | ????????# #####? #???????????????? | | ????????# ##??#?## ??????????????? | | ???#????# #???#? ?????????????? | | ????????# ###???? ?#??????????? | | ????????# ## #???? ###???????????? | | ????????# ## ## #???? ##?????????????? | | ????????########## ###???? #??????????????? | | ?????????????????## ##?????? #??????????????? | +----------------------------------------------------+ Best States ------------- Heat Dissipation 25 Energy Generation 10 Energy Capacity 125 Matter Stores 300 Matter Capacity 300 Sight Range 16 Terrain Scan Range 14 Terrain Scan Density 10 Evasion (%) 50 Recoil Reduction 2 Item Schematics ----------------- None Robot Schematics ------------------ None Fabricated ------------ Nothing Alien Tech Used ----------------- None Achievements -------------- None Challenges ------------ None Game ------ Seed TeleporterChromaticBattery Manual? 0 Play Time 00:12:04 Cumulative 16.9 hours Start 2024.09.04 @ 22:42:34 End 2024.09.04 @ 23:01:57 Sessions 1 Manual Loads 0 Difficulty Rogue Special Mode None Game No. 33 Rogue 33 Adventurer 0 Explorer 0 Win Type - Total 0 Types 0/0/0/0/0/0/0/0/0 Lore% 10 Gallery% 24 Achievement% 17 Wizard Run 0 Options --------- Layout 0 ASCII 0 Keyboard 0 Movement Arrows Keybinds 0 Fullscreen 2 Font 24/Smallcaps Map View 56x25 Zoom Use 69% Tactical HUD 0 Map Filters NONE Filters NONE Steam 1 RUN: 51dd6850-c0a4-4920-88e7-a8964deb66a0